[Event "23rd ETCC Women 2021"]
[Site "Catez"]
[Date "2021.11.12"]
[Round "1.32"]
[White "Ghukasyan, Siranush"]
[Black "Radikovic, Anamarija"]
[Result "0-1"]
[ECO "B90"]
[WhiteElo "2168"]
[BlackElo "2124"]
[Annotator "NA"]
[PlyCount "60"]
[EventDate "2021.11.08"]
[EventType "team-tourn"]
[EventCountry "SLO"]
[SourceTitle "playchess.com"]
[Source "ChessBase"]
[SourceQuality "1"]
[WhiteTeam "Armenia"]
[BlackTeam "Croatia"]
[WhiteTeamCountry "ARM"]
[BlackTeamCountry "CRO"]
[TimeControl "40/5400+30:1800+30"]

1. e4 {[%emt 0:00:04]} c5 {[%emt 0:00:04]} 2. Nf3 {[%emt 0:00:04]} d6 {[%emt 0:
00:04]} 3. d4 {[%emt 0:00:03]} cxd4 {[%emt 0:00:05]} 4. Nxd4 {[%emt 0:00:03]}
Nf6 {[%emt 0:00:08]} 5. Nc3 {[%emt 0:00:06]} a6 {[%emt 0:00:04]} 6. h3 {
[%emt 0:00:03]} e5 {[%emt 0:00:05]} 7. Nde2 {[%emt 0:00:14]} Be6 {[%emt 0:00:
41]} 8. Bg5 {[%emt 0:03:57]} Nbd7 {[%emt 0:05:55]} 9. g3 {[%emt 0:03:05]} h6 {
[%emt 0:06:15]} 10. Be3 {[%emt 0:01:08]} b5 {[%emt 0:02:08]} 11. Bg2 {[%emt 0:
07:37]} Rc8 {[%emt 0:01:10]} 12. a3 {[%emt 0:02:33]} Nb6 {[%emt 0:07:20]} 13.
b3 {[%emt 0:13:13]} Be7 {[%emt 0:04:50]} 14. O-O {[%emt 0:02:59]} O-O {[%emt 0:
00:17]} 15. Qd2 {[%emt 0:18:16]} Qc7 {[%emt 0:30:03]} 16. f4 {[%emt 0:14:33]}
Rfd8 {[%emt 0:05:31]} 17. f5 {[%emt 0:06:59]} Bd7 {[%emt 0:00:10]} 18. Ra2 {
[%emt 0:05:00]} Bc6 {[%emt 0:08:08]} 19. Nd5 {[%emt 0:01:13]} Bxd5 {[%emt 0:04:
16]} 20. exd5 {[%emt 0:00:07]} Nbd7 {[%emt 0:02:02]} 21. Kh2 {[%emt 0:04:46]}
Nh7 {[%emt 0:04:56]} 22. Bg1 {[%emt 0:09:01]} Re8 {[%emt 0:02:28]} 23. c3 {
[%emt 0:00:34]} Bf6 {[%emt 0:08:26]} 24. a4 {[%emt 0:01:36]} Nc5 {[%emt 0:01:
23]} 25. axb5 {[%emt 0:02:00]} axb5 {[%emt 0:00:37]} 26. Qc2 {[%emt 0:00:35]}
e4 {[%emt 0:05:18]} 27. Bd4 {[%emt 0:02:00]} Nd3 {[%emt 0:00:42]} 28. Bxf6 {
[%emt 0:02:05]} Nxf6 {[%emt 0:00:25]} 29. Bxe4 {[%emt 0:00:33]} Nb4 {[%emt 0:
00:12]} 30. cxb4 {[%emt 0:00:13]} Qxc2 {[%emt 0:00:07]} 0-1

[Event "23rd ETCC Women 2021"]
[Site "Catez"]
[Date "2021.11.12"]
[Round "1.33"]
[White "Vega Gutierrez, Sabrina"]
[Black "Toma, Katarzyna"]
[Result "1-0"]
[ECO "E14"]
[WhiteElo "2394"]
[BlackElo "2261"]
[Annotator "NA"]
[PlyCount "60"]
[EventDate "2021.11.08"]
[EventType "team-tourn"]
[EventCountry "SLO"]
[SourceTitle "playchess.com"]
[Source "ChessBase"]
[SourceQuality "1"]
[WhiteTeam "Spain"]
[BlackTeam "England"]
[WhiteTeamCountry "ESP"]
[BlackTeamCountry "ENG"]
[TimeControl "40/5400+30:1800+30"]

1. Nf3 {[%emt 0:00:06]} Nf6 {[%emt 0:00:14]} 2. c4 {[%emt 0:00:08]} e6 {
[%emt 0:00:18]} 3. e3 {[%emt 0:02:44]} b6 {[%emt 0:01:18]} 4. b3 {[%emt 0:01:
37]} Bb7 {[%emt 0:03:12]} 5. Bb2 {[%emt 0:00:10]} Be7 {[%emt 0:00:34]} 6. Be2 {
[%emt 0:05:41]} O-O {[%emt 0:01:18]} 7. O-O {[%emt 0:00:07]} c5 {[%emt 0:02:35]
} 8. d4 {[%emt 0:03:57]} d5 {[%emt 0:08:59]} 9. Nc3 {[%emt 0:05:55]} Nbd7 {
[%emt 0:03:20]} 10. Rc1 {[%emt 0:04:42]} Rc8 {[%emt 0:05:24]} 11. cxd5 {
[%emt 0:13:31]} Nxd5 {[%emt 0:09:01]} 12. Nxd5 {[%emt 0:00:34]} Bxd5 {[%emt 0:
00:10]} 13. Ba6 {[%emt 0:01:37]} Rc7 {[%emt 0:00:09]} 14. Qe2 {[%emt 0:08:46]}
Qa8 {[%emt 0:03:03]} 15. Rfe1 {[%emt 0:07:53]} Nf6 {[%emt 0:07:42]} 16. b4 {
[%emt 0:02:30]} c4 {[%emt 0:05:58]} 17. a3 {[%emt 0:13:14]} Qc6 {[%emt 0:15:36]
} 18. Ne5 {[%emt 0:00:26]} Qa4 {[%emt 0:00:05]} 19. Bxc4 {[%emt 0:00:28]} Rfc8
{[%emt 0:00:41]} 20. Bd3 {[%emt 0:05:36]} a5 {[%emt 0:10:11]} 21. e4 {[%emt 0:
00:47]} Rxc1 {[%emt 0:00:32]} 22. Bxc1 {[%emt 0:01:38]} Bb7 {[%emt 0:03:11]}
23. Nc4 {[%emt 0:01:19]} Qc6 {[%emt 0:12:38]} 24. b5 {[%emt 0:03:41]} Qc7 {
[%emt 0:00:11]} 25. f3 {[%emt 0:00:44]} Nd7 {[%emt 0:01:38]} 26. Be3 {[%emt 0:
01:01]} g6 {[%emt 0:01:50]} 27. Qd2 {[%emt 0:01:18]} Qd8 {[%emt 0:01:09]} 28.
Bf1 {[%emt 0:00:52]} f5 {[%emt 0:01:22]} 29. d5 {[%emt 0:01:45]} exd5 {[%emt 0:
00:51]} 30. exd5 {[%emt 0:00:03]} Bc5 {[%emt 0:00:21]} 1-0

[Event "23rd ETCC Women 2021"]
[Site "Catez"]
[Date "2021.11.12"]
[Round "1.34"]
[White "Head, Louise"]
[Black "Matnadze, Ana"]
[Result "0-1"]
[ECO "E12"]
[WhiteElo "2069"]
[BlackElo "2418"]
[Annotator "NA"]
[PlyCount "56"]
[EventDate "2021.11.08"]
[EventType "team-tourn"]
[EventCountry "SLO"]
[SourceTitle "playchess.com"]
[Source "ChessBase"]
[SourceQuality "1"]
[WhiteTeam "England"]
[BlackTeam "Spain"]
[WhiteTeamCountry "ENG"]
[BlackTeamCountry "ESP"]
[TimeControl "40/5400+30:1800+30"]

1. d4 {[%emt 0:00:07]} Nf6 {[%emt 0:00:05]} 2. c4 {[%emt 0:00:05]} e6 {[%emt 0:
00:04]} 3. Nf3 {[%emt 0:00:06]} b6 {[%emt 0:00:04]} 4. a3 {[%emt 0:00:17]} Bb7
{[%emt 0:00:06]} 5. Nc3 {[%emt 0:00:10]} d5 {[%emt 0:01:18]} 6. cxd5 {[%emt 0:
00:34]} exd5 {[%emt 0:00:07]} 7. g3 {[%emt 0:04:30]} Be7 {[%emt 0:01:13]} 8.
Bg2 {[%emt 0:09:46]} O-O {[%emt 0:00:11]} 9. O-O {[%emt 0:07:50]} c5 {[%emt 0:
01:07]} 10. Ne5 {[%emt 0:06:06]} Nbd7 {[%emt 0:12:05]} 11. Nd3 {[%emt 0:06:18]}
cxd4 {[%emt 0:04:26]} 12. Nb5 {[%emt 0:05:05]} Ne4 {[%emt 0:02:40]} 13. Nxd4 {
[%emt 0:05:06]} Bf6 {[%emt 0:00:18]} 14. Nf5 {[%emt 0:14:57]} Ndc5 {[%emt 0:03:
01]} 15. Nxc5 {[%emt 0:10:09]} bxc5 {[%emt 0:01:12]} 16. Qc2 {[%emt 0:01:30]}
Qb6 {[%emt 0:05:14]} 17. a4 {[%emt 0:06:51]} Rfe8 {[%emt 0:04:26]} 18. Bf4 {
[%emt 0:08:12]} Rad8 {[%emt 0:02:01]} 19. g4 {[%emt 0:05:01]} Ba6 {[%emt 0:03:
06]} 20. Rab1 {[%emt 0:02:45]} Qb4 {[%emt 0:03:38]} 21. h3 {[%emt 0:02:31]} g6
{[%emt 0:01:41]} 22. Nh6+ {[%emt 0:01:34]} Kg7 {[%emt 0:00:07]} 23. Rfc1 {
[%emt 0:01:33]} Bg5 {[%emt 0:06:46]} 24. Bxg5 {[%emt 0:00:31]} Nxg5 {[%emt 0:
00:02]} 25. h4 {[%emt 0:00:45]} Ne6 {[%emt 0:00:41]} 26. g5 {[%emt 0:00:39]}
Nd4 {[%emt 0:01:38]} 27. Qxc5 {[%emt 0:00:30]} Nxe2+ {[%emt 0:00:10]} 28. Kh2 {
[%emt 0:00:14]} Qf4+ {[%emt 0:01:26]} 0-1

[Event "23rd ETCC Women 2021"]
[Site "Catez"]
[Date "2021.11.12"]
[Round "1.35"]
[White "Eizaguerri Floris, Maria"]
[Black "Emelianova, Maria"]
[Result "1-0"]
[ECO "B32"]
[WhiteElo "2328"]
[BlackElo "2113"]
[Annotator "NA"]
[PlyCount "57"]
[EventDate "2021.11.08"]
[EventType "team-tourn"]
[EventCountry "SLO"]
[SourceTitle "playchess.com"]
[Source "ChessBase"]
[SourceQuality "1"]
[WhiteTeam "Spain"]
[BlackTeam "England"]
[WhiteTeamCountry "ESP"]
[BlackTeamCountry "ENG"]
[TimeControl "40/5400+30:1800+30"]

1. e4 {[%emt 0:00:02]} c5 {[%emt 0:00:06]} 2. Nf3 {[%emt 0:00:11]} Nc6 {
[%emt 0:00:11]} 3. d4 {[%emt 0:00:06]} cxd4 {[%emt 0:00:05]} 4. Nxd4 {[%emt 0:
00:04]} e5 {[%emt 0:00:06]} 5. Nb5 {[%emt 0:00:13]} a6 {[%emt 0:00:05]} 6. Nd6+
{[%emt 0:00:13]} Bxd6 {[%emt 0:00:06]} 7. Qxd6 {[%emt 0:00:05]} Qf6 {[%emt 0:
00:06]} 8. Qd1 {[%emt 0:00:19]} Qg6 {[%emt 0:00:08]} 9. Nc3 {[%emt 0:00:16]} d5
{[%emt 0:01:00]} 10. Nxd5 {[%emt 0:01:06]} Qxe4+ {[%emt 0:03:06]} 11. Be3 {
[%emt 0:00:27]} Nd4 {[%emt 0:02:02]} 12. Nc7+ {[%emt 0:00:35]} Ke7 {[%emt 0:00:
46]} 13. Be2 {[%emt 0:00:29]} Nxc2+ {[%emt 0:01:25]} 14. Kf1 {[%emt 0:00:07]}
Nxe3+ {[%emt 0:01:24]} 15. fxe3 {[%emt 0:00:06]} Nf6 {[%emt 0:10:16]} 16. Nxa8
{[%emt 0:12:57]} Rd8 {[%emt 0:33:10]} 17. Qe1 {[%emt 0:25:49]} Nd5 {[%emt 0:06:
18]} 18. Bf3 {[%emt 0:11:00]} Nxe3+ {[%emt 0:05:44]} 19. Kg1 {[%emt 0:02:03]}
Qd4 {[%emt 0:04:26]} 20. Qf2 {[%emt 0:00:18]} f5 {[%emt 0:05:34]} 21. Re1 {
[%emt 0:14:18]} f4 {[%emt 0:01:21]} 22. h3 {[%emt 0:08:41]} Bf5 {[%emt 0:08:36]
} 23. Qh4+ {[%emt 0:03:35]} Kf8 {[%emt 0:00:53]} 24. Kh2 {[%emt 0:00:44]} Rxa8
{[%emt 0:02:28]} 25. Rc1 {[%emt 0:03:22]} Qxb2 {[%emt 0:02:59]} 26. Rc7 {
[%emt 0:02:50]} e4 {[%emt 0:00:15]} 27. Qe7+ {[%emt 0:04:31]} Kg8 {[%emt 0:00:
01]} 28. Bxe4 {[%emt 0:02:36]} Bxe4 {[%emt 0:00:25]} 29. Qe6+ {[%emt 0:00:08]}
1-0

[Event "23rd ETCC Women 2021"]
[Site "Catez"]
[Date "2021.11.12"]
[Round "1.36"]
[White "Bayat, Shohreh"]
[Black "Calzetta Ruiz, Monica"]
[Result "0-1"]
[ECO "C24"]
[WhiteElo "2091"]
[BlackElo "2201"]
[Annotator "NA"]
[PlyCount "84"]
[EventDate "2021.11.08"]
[EventType "team-tourn"]
[EventCountry "SLO"]
[SourceTitle "playchess.com"]
[Source "ChessBase"]
[SourceQuality "1"]
[WhiteTeam "England"]
[BlackTeam "Spain"]
[WhiteTeamCountry "ENG"]
[BlackTeamCountry "ESP"]
[TimeControl "40/5400+30:1800+30"]

1. e4 {[%emt 0:00:12]} e5 {[%emt 0:00:12]} 2. Bc4 {[%emt 0:00:37]} Nf6 {
[%emt 0:00:10]} 3. d3 {[%emt 0:00:08]} c6 {[%emt 0:00:23]} 4. Bb3 {[%emt 0:05:
04]} d5 {[%emt 0:03:35]} 5. Qe2 {[%emt 0:11:03]} Bb4+ {[%emt 0:19:00]} 6. c3 {
[%emt 0:05:08]} Bd6 {[%emt 0:00:41]} 7. Nf3 {[%emt 0:02:57]} O-O {[%emt 0:00:
57]} 8. O-O {[%emt 0:02:48]} Re8 {[%emt 0:11:09]} 9. Bg5 {[%emt 0:08:49]} a5 {
[%emt 0:02:09]} 10. a4 {[%emt 0:06:56]} Qb6 {[%emt 0:05:49]} 11. Nbd2 {[%emt 0:
03:39]} Nbd7 {[%emt 0:00:07]} 12. Rab1 {[%emt 0:17:17]} h6 {[%emt 0:00:15]} 13.
Be3 {[%emt 0:00:53]} Qc7 {[%emt 0:01:33]} 14. Nh4 {[%emt 0:01:23]} Nc5 {
[%emt 0:10:37]} 15. Bc2 {[%emt 0:00:01]} Ne6 {[%emt 0:12:54]} 16. Nf5 {[%emt 0:
06:14]} d4 {[%emt 0:03:35]} 17. cxd4 {[%emt 0:01:26]} exd4 {[%emt 0:00:26]} 18.
Nxd6 {[%emt 0:04:18]} Qxd6 {[%emt 0:01:32]} 19. Nc4 {[%emt 0:00:01]} Qc7 {
[%emt 0:04:30]} 20. Bd2 {[%emt 0:00:02]} b5 {[%emt 0:03:49]} 21. Na3 {[%emt 0:
05:47]} Bd7 {[%emt 0:05:04]} 22. Qf3 {[%emt 0:00:44]} Nc5 {[%emt 0:03:47]} 23.
h3 {[%emt 0:02:48]} Nh7 {[%emt 0:01:47]} 24. Bf4 {[%emt 0:01:18]} Qd8 {[%emt 0:
00:06]} 25. Bd6 {[%emt 0:02:42]} Ng5 {[%emt 0:00:45]} 26. Qg3 {[%emt 0:00:36]}
Nxa4 {[%emt 0:01:37]} 27. Bxa4 {[%emt 0:00:17]} bxa4 {[%emt 0:00:02]} 28. f4 {
[%emt 0:01:17]} Nh7 {[%emt 0:01:16]} 29. Nc4 {[%emt 0:00:39]} Be6 {[%emt 0:00:
27]} 30. e5 {[%emt 0:02:43]} Ra7 {[%emt 0:00:41]} 31. Bc5 {[%emt 0:00:47]} Bxc4
{[%emt 0:04:18]} 32. Bxa7 {[%emt 0:01:07]} Bb5 {[%emt 0:00:12]} 33. Bc5 {
[%emt 0:00:16]} Qd5 {[%emt 0:00:09]} 34. Rfc1 {[%emt 0:02:50]} Re6 {[%emt 0:00:
25]} 35. Rd1 {[%emt 0:01:02]} Rg6 {[%emt 0:00:28]} 36. Qxg6 {[%emt 0:01:33]}
fxg6 {[%emt 0:00:02]} 37. Rbc1 {[%emt 0:01:39]} Nf8 {[%emt 0:00:06]} 38. Bd6 {
[%emt 0:00:41]} Ne6 {[%emt 0:00:07]} 39. g3 {[%emt 0:01:37]} c5 {[%emt 0:00:20]
} 40. Kh2 {[%emt 0:00:14]} Qf3 {[%emt 0:01:12]} 41. Rd2 {[%emt 0:04:48]} Bxd3 {
[%emt 0:07:47]} 42. Bxc5 {[%emt 0:00:23]} Qe3 {[%emt 0:02:45]} 0-1

[Event "23rd ETCC Women 2021"]
[Site "Catez"]
[Date "2021.11.12"]
[Round "1.37"]
[White "Novkovic, Julia"]
[Black "Bulmaga, Irina"]
[Result "0-1"]
[ECO "B51"]
[WhiteElo "2082"]
[BlackElo "2405"]
[Annotator "NA"]
[PlyCount "60"]
[EventDate "2021.11.08"]
[EventType "team-tourn"]
[EventCountry "SLO"]
[SourceTitle "playchess.com"]
[Source "ChessBase"]
[SourceQuality "1"]
[WhiteTeam "Austria"]
[BlackTeam "Romania"]
[WhiteTeamCountry "AUT"]
[BlackTeamCountry "ROU"]
[TimeControl "40/5400+30:1800+30"]

1. e4 {[%emt 0:00:03]} c5 {[%emt 0:00:06]} 2. Nf3 {[%emt 0:00:04]} d6 {[%emt 0:
00:06]} 3. Bb5+ {[%emt 0:00:18]} Nd7 {[%emt 0:00:19]} 4. O-O {[%emt 0:00:22]}
a6 {[%emt 0:00:16]} 5. Bd3 {[%emt 0:00:10]} b5 {[%emt 0:04:35]} 6. c4 {[%emt 0:
00:06]} Rb8 {[%emt 0:00:23]} 7. Re1 {[%emt 0:00:39]} b4 {[%emt 0:01:23]} 8. a3
{[%emt 0:03:55]} a5 {[%emt 0:01:44]} 9. Bc2 {[%emt 0:03:58]} e5 {[%emt 0:00:17]
} 10. axb4 {[%emt 0:05:07]} axb4 {[%emt 0:00:08]} 11. Ba4 {[%emt 0:08:20]} Ngf6
{[%emt 0:06:58]} 12. d4 {[%emt 0:08:16]} cxd4 {[%emt 0:02:35]} 13. c5 {[%emt 0:
00:53]} Qc7 {[%emt 0:02:59]} 14. c6 {[%emt 0:09:20]} Nc5 {[%emt 0:03:10]} 15.
Nxd4 {[%emt 0:11:09]} Nxa4 {[%emt 0:04:08]} 16. Qxa4 {[%emt 0:02:15]} exd4 {
[%emt 0:01:17]} 17. Bf4 {[%emt 0:00:13]} Ng4 {[%emt 0:06:59]} 18. e5 {[%emt 0:
12:57]} Nxe5 {[%emt 0:01:08]} 19. Nd2 {[%emt 0:05:58]} Be7 {[%emt 0:02:41]} 20.
Nb3 {[%emt 0:15:16]} O-O {[%emt 0:00:51]} 21. Nxd4 {[%emt 0:05:08]} Nd3 {
[%emt 0:00:19]} 22. Qa7 {[%emt 0:05:05]} Qxa7 {[%emt 0:02:37]} 23. Rxa7 {
[%emt 0:00:02]} Nxe1 {[%emt 0:01:28]} 24. Rxe7 {[%emt 0:00:08]} Be6 {[%emt 0:
07:45]} 25. Bxd6 {[%emt 0:02:08]} Ra8 {[%emt 0:00:53]} 26. Nxe6 {[%emt 0:00:48]
} fxe6 {[%emt 0:00:45]} 27. Kf1 {[%emt 0:00:40]} Nd3 {[%emt 0:00:40]} 28. f3 {
[%emt 0:00:25]} Rf7 {[%emt 0:00:37]} 29. c7 {[%emt 0:00:40]} Rxe7 {[%emt 0:00:
11]} 30. Bxe7 {[%emt 0:00:05]} Rc8 {[%emt 0:00:38]} 0-1

[Event "23rd ETCC Women 2021"]
[Site "Catez"]
[Date "2021.11.12"]
[Round "1.38"]
[White "Peptan, Corina-Isabela"]
[Black "Hapala, Elisabeth"]
[Result "1-0"]
[ECO "E11"]
[WhiteElo "2385"]
[BlackElo "2139"]
[Annotator "ChessBase"]
[PlyCount "135"]
[EventDate "2021.11.08"]
[EventType "team-tourn"]
[EventCountry "SLO"]
[SourceTitle "playchess.com"]
[Source "ChessBase"]
[SourceQuality "1"]
[WhiteTeam "Romania"]
[BlackTeam "Austria"]
[WhiteTeamCountry "ROU"]
[BlackTeamCountry "AUT"]
[TimeControl "40/5400+30:1800+30"]

1. d4 {[%emt 0:00:06]} Nf6 {[%emt 0:00:04]} 2. c4 {[%emt 0:00:05]} e6 {[%emt 0:
00:03]} 3. Nf3 {[%emt 0:00:07]} Bb4+ {[%emt 0:00:05]} 4. Bd2 {[%emt 0:00:04]}
a5 {[%emt 0:00:04]} 5. e3 {[%emt 0:00:58]} O-O {[%emt 0:03:48]} 6. Bd3 {
[%emt 0:01:02]} d5 {[%emt 0:02:38]} 7. O-O {[%emt 0:01:00]} b6 {[%emt 0:03:15]}
8. cxd5 {[%emt 0:05:44]} exd5 {[%emt 0:00:39]} 9. Ne5 {[%emt 0:00:06]} c5 {
[%emt 0:15:58]} 10. Nc3 {[%emt 0:11:18]} c4 {[%emt 0:19:54]} 11. Bc2 {[%emt 0:
00:22]} Bb7 {[%emt 0:06:51]} 12. f4 {[%emt 0:28:01]} Nbd7 {[%emt 0:05:29]} 13.
Rf3 {[%emt 0:00:28]} Bxc3 {[%emt 0:17:55]} 14. Bxc3 {[%emt 0:07:06]} Ne4 {
[%emt 0:02:48]} 15. Bxe4 {[%emt 0:06:00]} dxe4 {[%emt 0:00:01]} 16. Rg3 {
[%emt 0:00:17]} Nxe5 {[%emt 0:05:01]} 17. fxe5 {[%emt 0:00:06]} Bd5 {[%emt 0:
00:52]} 18. Qg4 {[%emt 0:00:12]} g6 {[%emt 0:00:10]} 19. Rf1 {[%emt 0:02:38]}
b5 {[%emt 0:04:57]} 20. Rf6 {[%emt 0:01:21]} b4 {[%emt 0:02:19]} 21. Be1 {
[%emt 0:04:47]} c3 {[%emt 0:05:07]} 22. bxc3 {[%emt 0:02:38]} bxc3 {[%emt 0:00:
01]} 23. Rf2 {[%emt 0:11:57]} Rb8 {[%emt 0:03:09]} 24. Qd1 {[%emt 0:04:09]} Rb2
{[%emt 0:00:46]} 25. Bxc3 {[%emt 0:00:18]} Rxf2 {[%emt 0:00:32]} 26. Kxf2 {
[%emt 0:00:02]} Qc7 {[%emt 0:00:32]} 27. Qd2 {[%emt 0:04:39]} a4 {[%emt 0:00:
04]} 28. Bb4 {[%emt 0:04:07]} Rc8 {[%emt 0:00:50]} 29. Bc5 {[%emt 0:00:11]} Qb7
{[%emt 0:00:31]} 30. a3 {[%emt 0:02:50]} Qb1 {[%emt 0:00:26]} 31. Rg4 {[%emt 0:
01:11]} Rb8 {[%emt 0:00:25]} 32. Kg3 {[%emt 0:01:11]} Rb3 {[%emt 0:00:43]} 33.
Rf4 {[%emt 0:01:16]} Qd3 {[%emt 0:00:22]} 34. Qxd3 {[%emt 0:00:12]} Rxd3 {
[%emt 0:00:38]} 35. Rf6 {[%emt 0:00:53]} Rxe3+ {[%emt 0:00:25]} 36. Kf4 {
[%emt 0:00:04]} Re2 {[%emt 0:00:35]} 37. Rd6 {[%emt 0:00:04]} g5+ {[%emt 0:00:
32]} 38. Kg3 {[%emt 0:00:43]} Bb3 {[%emt 0:00:28]} 39. Rd8+ {[%emt 0:00:09]}
Kg7 {[%emt 0:00:01]} 40. Bf8+ {[%emt 0:00:18]} Kg6 {[%emt 0:00:17]} 41. Rd6+ {
[%emt 0:30:06]} Be6 {[%emt 0:01:18]} 42. d5 {[%emt 0:00:00]} Kf5 {[%emt 0:11:
57]} 43. dxe6 {[%emt 0:00:00]} fxe6 {[%emt 0:01:59]} 44. Rd1 {[%emt 0:00:00]}
Kxe5 {[%emt 0:02:00]} 45. Bd6+ {[%emt 0:00:00]} Kf5 {[%emt 0:00:12]} 46. Rf1+ {
[%emt 0:00:00]} Kg6 {[%emt 0:00:02]} 47. Bb4 {[%emt 0:00:00]} Rc2 {[%emt 0:08:
41]} 48. Rf2 {[%emt 0:00:00]} Rc1 {[%emt 0:02:24]} 49. Re2 {[%emt 0:00:00]} Kf5
{[%emt 0:00:05]} 50. Kf2 {[%emt 0:00:00]} Rb1 {[%emt 0:01:17]} 51. Rc2 {
[%emt 0:00:00]} e5 {[%emt 0:01:16]} 52. Bd2 {[%emt 0:00:00]} Rb3 {[%emt 0:01:
53]} 53. Rc3 {[%emt 0:00:00]} Rb2 {[%emt 0:00:08]} 54. Ke2 {[%emt 0:00:00]} Ra2
{[%emt 0:01:49]} 55. Rh3 {[%emt 0:00:00]} Kg6 {[%emt 0:01:41]} 56. g4 {[%emt 0:
00:00]} h6 {[%emt 0:00:33]} 57. Rc3 {[%emt 0:00:00]} Ra1 {[%emt 0:00:56]} 58.
Rc6+ {[%emt 0:00:00]} Kh7 {[%emt 0:00:58]} 59. Bb4 {[%emt 0:00:00]} Rg1 {
[%emt 0:01:03]} 60. h3 {[%emt 0:00:00]} Rh1 {[%emt 0:00:23]} 61. Ke3 {[%emt 0:
00:00]} Rxh3+ {[%emt 0:00:17]} 62. Kxe4 {[%emt 0:00:00]} Rg3 {[%emt 0:00:29]}
63. Kf5 {[%emt 0:00:00]} Rf3+ {[%emt 0:00:24]} 64. Kxe5 {[%emt 0:00:00]} Rf4 {
[%emt 0:00:02]} 65. Bd6 {[%emt 0:00:48]} Kg7 {[%emt 0:01:25]} 66. Ke6 {[%emt 0:
01:05]} Rxg4 {[%emt 0:00:29]} 67. Kf5 {[%emt 0:00:06]} Rg1 {[%emt 0:00:33]} 68.
Rc7+ {[%emt 0:00:08]} 1-0

[Event "23rd ETCC Women 2021"]
[Site "Catez"]
[Date "2021.11.12"]
[Round "1.39"]
[White "Teuschler, Barbara"]
[Black "Sandu, Mihaela"]
[Result "0-1"]
[ECO "B22"]
[WhiteElo "2115"]
[BlackElo "2244"]
[Annotator "NA"]
[PlyCount "80"]
[EventDate "2021.11.08"]
[EventType "team-tourn"]
[EventCountry "SLO"]
[SourceTitle "playchess.com"]
[Source "ChessBase"]
[SourceQuality "1"]
[WhiteTeam "Austria"]
[BlackTeam "Romania"]
[WhiteTeamCountry "AUT"]
[BlackTeamCountry "ROU"]
[TimeControl "40/5400+30:1800+30"]

1. e4 {[%emt 0:00:00]} c5 {[%emt 0:00:14]} 2. c3 {[%emt 0:00:05]} Nf6 {[%emt 0:
09:18]} 3. e5 {[%emt 0:00:07]} Nd5 {[%emt 0:00:04]} 4. d4 {[%emt 0:00:19]} cxd4
{[%emt 0:00:04]} 5. Nf3 {[%emt 0:00:11]} e6 {[%emt 0:00:14]} 6. cxd4 {[%emt 0:
00:13]} d6 {[%emt 0:00:17]} 7. Bc4 {[%emt 0:00:29]} Be7 {[%emt 0:02:56]} 8. O-O
{[%emt 0:00:07]} O-O {[%emt 0:00:21]} 9. Qe2 {[%emt 0:00:28]} b6 {[%emt 0:04:
33]} 10. Qe4 {[%emt 0:25:33]} Ba6 {[%emt 0:05:11]} 11. Bxa6 {[%emt 0:25:56]}
Nxa6 {[%emt 0:00:34]} 12. Qg4 {[%emt 0:00:22]} Kh8 {[%emt 0:06:15]} 13. Bg5 {
[%emt 0:07:58]} dxe5 {[%emt 0:22:05]} 14. dxe5 {[%emt 0:01:27]} Bxg5 {[%emt 0:
01:35]} 15. Nxg5 {[%emt 0:00:34]} h6 {[%emt 0:00:56]} 16. Nf3 {[%emt 0:02:40]}
Rc8 {[%emt 0:00:29]} 17. Na3 {[%emt 0:00:46]} Nab4 {[%emt 0:02:14]} 18. Nb5 {
[%emt 0:06:00]} Rc2 {[%emt 0:06:09]} 19. a3 {[%emt 0:07:43]} Nc6 {[%emt 0:01:
34]} 20. Rab1 {[%emt 0:01:33]} Rc5 {[%emt 0:05:10]} 21. Qa4 {[%emt 0:01:23]}
Qd7 {[%emt 0:06:20]} 22. Rbc1 {[%emt 0:04:31]} Rxc1 {[%emt 0:07:41]} 23. Rxc1 {
[%emt 0:00:01]} Nce7 {[%emt 0:02:03]} 24. Qa6 {[%emt 0:01:43]} Nf4 {[%emt 0:03:
00]} 25. Nd6 {[%emt 0:04:42]} Kh7 {[%emt 0:02:15]} 26. Qc4 {[%emt 0:00:26]}
Ned5 {[%emt 0:01:35]} 27. g3 {[%emt 0:00:46]} Ng6 {[%emt 0:00:23]} 28. Ne4 {
[%emt 0:02:22]} Nde7 {[%emt 0:01:32]} 29. h4 {[%emt 0:00:34]} Rc8 {[%emt 0:01:
09]} 30. Qf1 {[%emt 0:00:27]} Rxc1 {[%emt 0:00:06]} 31. Qxc1 {[%emt 0:00:00]}
Qd5 {[%emt 0:02:32]} 32. Qc2 {[%emt 0:00:57]} Kg8 {[%emt 0:00:19]} 33. Nfd2 {
[%emt 0:05:01]} Nxe5 {[%emt 0:01:21]} 34. Qc7 {[%emt 0:00:03]} N7c6 {[%emt 0:
00:29]} 35. Qc8+ {[%emt 0:00:57]} Kh7 {[%emt 0:00:18]} 36. Qf8 {[%emt 0:01:02]}
f5 {[%emt 0:02:40]} 37. Nd6 {[%emt 0:00:56]} Qxd2 {[%emt 0:00:08]} 38. Ne8 {
[%emt 0:00:03]} Qd1+ {[%emt 0:01:11]} 39. Kg2 {[%emt 0:00:10]} Qd5+ {[%emt 0:
00:10]} 40. Kh3 {[%emt 0:00:09]} Qh1# {[%emt 0:00:15]} 0-1

[Event "23rd ETCC Women 2021"]
[Site "Catez"]
[Date "2021.11.12"]
[Round "1.40"]
[White "Ciolacu, Alessia-Mihaela"]
[Black "Froewis, Annika"]
[Result "1-0"]
[ECO "D36"]
[WhiteElo "2263"]
[BlackElo "2079"]
[Annotator "NA"]
[PlyCount "59"]
[EventDate "2021.11.08"]
[EventType "team-tourn"]
[EventCountry "SLO"]
[SourceTitle "playchess.com"]
[Source "ChessBase"]
[SourceQuality "1"]
[WhiteTeam "Romania"]
[BlackTeam "Austria"]
[WhiteTeamCountry "ROU"]
[BlackTeamCountry "AUT"]
[TimeControl "40/5400+30:1800+30"]

1. d4 {[%emt 0:00:03]} d5 {[%emt 0:00:05]} 2. c4 {[%emt 0:00:06]} e6 {[%emt 0:
00:04]} 3. Nc3 {[%emt 0:00:05]} Nf6 {[%emt 0:00:05]} 4. cxd5 {[%emt 0:00:10]}
exd5 {[%emt 0:00:06]} 5. Bg5 {[%emt 0:00:09]} Be7 {[%emt 0:00:06]} 6. e3 {
[%emt 0:00:11]} c6 {[%emt 0:00:11]} 7. Bd3 {[%emt 0:00:13]} Nbd7 {[%emt 0:00:
19]} 8. h3 {[%emt 0:00:23]} O-O {[%emt 0:00:50]} 9. Qc2 {[%emt 0:00:28]} Re8 {
[%emt 0:12:28]} 10. Bf4 {[%emt 0:00:18]} Nf8 {[%emt 0:01:45]} 11. Nf3 {[%emt 0:
00:14]} Ne6 {[%emt 0:10:03]} 12. Be5 {[%emt 0:00:33]} g6 {[%emt 0:00:20]} 13.
O-O-O {[%emt 0:00:26]} b5 {[%emt 0:02:11]} 14. Kb1 {[%emt 0:01:50]} a5 {
[%emt 0:06:32]} 15. Rc1 {[%emt 0:02:05]} Bb7 {[%emt 0:09:47]} 16. g4 {[%emt 0:
04:36]} Rc8 {[%emt 0:09:48]} 17. Rhg1 {[%emt 0:12:43]} Nd7 {[%emt 0:02:03]} 18.
Ne2 {[%emt 0:11:41]} b4 {[%emt 0:06:04]} 19. Nf4 {[%emt 0:10:38]} Nef8 {
[%emt 0:05:47]} 20. g5 {[%emt 0:03:26]} c5 {[%emt 0:02:15]} 21. Bb5 {[%emt 0:
02:03]} Qb6 {[%emt 0:12:10]} 22. Qa4 {[%emt 0:01:27]} Nxe5 {[%emt 0:03:26]} 23.
Nxe5 {[%emt 0:00:52]} Red8 {[%emt 0:00:30]} 24. dxc5 {[%emt 0:01:44]} Rxc5 {
[%emt 0:02:17]} 25. Be8 {[%emt 0:01:44]} Rxc1+ {[%emt 0:01:58]} 26. Rxc1 {
[%emt 0:00:06]} Bxg5 {[%emt 0:02:22]} 27. Nxf7 {[%emt 0:02:48]} d4 {[%emt 0:08:
29]} 28. Nxg5 {[%emt 0:01:29]} dxe3 {[%emt 0:00:41]} 29. Qb3+ {[%emt 0:00:58]}
Kh8 {[%emt 0:00:28]} 30. Nf7+ {[%emt 0:00:37]} 1-0